fUSD/lending_fUSD_20240909
["ID","MTS","AMOUNT","RATE_DAILY","PERIOD"]
[337622923,1725898263904,-500.0,0.00014794,2]
[337622924,1725898263914,-974.09612486,0.00014794,2]
[337622925,1725898263923,-2892.98,0.00014794,2]
[337622926,1725898263932,-833.46,0.00014794,2]
[337622927,1725898263941,-528.29,0.00014794,2]
[337622928,1725898263951,-500.0,0.00014794,2]
[337622929,1725898263961,-2892.98,0.00014794,2]
[337622930,1725898263971,-833.46,0.00014794,2]
[337622931,1725898263980,-528.29,0.00014794,2]
[337622932,1725898263990,-500.0,0.00014794,2]
[337622933,1725898264001,-500.0,0.00014794,2]
[337622934,1725898264015,-502.37188895,0.00014794,2]
[337622935,1725898264025,-833.59806426,0.00014794,2]
[337622936,1725898264034,-2892.98,0.00014794,2]
[337622937,1725898264044,-528.29,0.00014794,2]
[337622938,1725898264053,-500.0,0.00014794,2]
[337622939,1725898264063,-2892.98,0.00014794,2]
[337622940,1725898264072,-528.29,0.00014794,2]
[337622941,1725898264081,-500.0,0.00014794,2]
[337622942,1725898264091,-528.29,0.00014794,2]
[337622943,1725898264100,-500.0,0.00014794,2]
[337622944,1725898264110,-528.29,0.00014794,2]
[337622945,1725898264120,-500.0,0.00014794,2]
[337622946,1725898264129,-500.0,0.00014794,2]
[337622947,1725898264138,-528.29,0.00014794,2]
[337622948,1725898264148,-500.0,0.00014794,2]
[337622949,1725898264156,-500.0,0.00014794,2]
[337622950,1725898264166,-528.33196907,0.00014794,2]
[337622951,1725898264175,-500.0,0.00014794,2]
[337622952,1725898264185,-500.0,0.00014794,2]
[337622953,1725898264195,-500.0,0.00014794,2]
[337622954,1725898264205,-502.09139411,0.00014794,2]
[337622955,1725898264215,-500.0,0.00014794,2]
[337622956,1725898264225,-500.0,0.00014794,2]
[337622957,1725898264235,-2734.48,0.00014794,2]
[337622958,1725898264245,-500.0,0.00014794,2]
[337622959,1725898264258,-2734.48,0.00014794,2]
[337622960,1725898264268,-500.0,0.00014794,2]
[337622961,1725898264277,-2734.48,0.00014794,2]
[337622962,1725898264286,-189.03697211,0.00014794,2]
[337622963,1725898264296,-2734.48,0.00014794,2]
[337622964,1725898264305,-2892.98,0.00014794,2]
[337622965,1725898264315,-2734.48,0.00014794,2]
[337622966,1725898264324,-2892.98,0.00014794,2]
[337622967,1725898264334,-500.0,0.00014794,2]
[337622968,1725898264343,-2734.48,0.00014794,2]
[337622969,1725898264353,-2734.48,0.00014794,2]
[337622970,1725898264362,-2892.98,0.00014794,2]
[337622971,1725898264371,-2734.48,0.00014794,2]
[337622972,1725898264381,-2892.98,0.00014794,2]
[337622973,1725898264390,-2734.48,0.00014794,2]
[337622974,1725898264399,-2892.98,0.00014794,2]
[337622975,1725898264409,-1109.286826,0.00014794,2]
[337622976,1725898264418,-2734.48,0.00014794,2]
[337622977,1725898264427,-2892.98,0.00014794,2]
[337622978,1725898264436,-1109.286826,0.00014794,2]
[337622979,1725898264445,-837.29,0.00014794,2]
[337622980,1725898264454,-500.0,0.00014794,2]
[337622981,1725898264464,-2734.48,0.00014794,2]
[337622982,1725898264474,-530.83038262,0.00014794,2]
[337622983,1725898264483,-2892.98,0.00014794,2]
[337622984,1725898264492,-837.29,0.00014794,2]
[337622985,1725898264503,-1109.286826,0.00014794,2]
[337622986,1725898264512,-500.0,0.00014794,2]
[337622987,1725898264521,-837.29,0.00014794,2]
[337622988,1725898264530,-2892.98,0.00014794,2]
[337622989,1725898264540,-2734.48,0.00014794,2]
[337622990,1725898264548,-500.0,0.00014794,2]
[337622991,1725898264558,-1109.286834,0.00014794,2]
[337622992,1725898264567,-837.29,0.00014794,2]
[337622993,1725898264576,-2734.48,0.00014794,2]
[337622994,1725898264585,-2892.98,0.00014794,2]
[337622995,1725898264594,-500.0,0.00014794,2]
[337622996,1725898264604,-837.29,0.00014794,2]
[337622997,1725898264613,-1115.19,0.00014794,2]
[337622998,1725898264623,-500.0,0.00014794,2]
[337622999,1725898264632,-2734.48,0.00014794,2]
[337623000,1725898264642,-2893.16101811,0.00014794,2]
[337623001,1725898264654,-837.29,0.00014794,2]
[337623002,1725898264664,-1115.19,0.00014794,2]
[337623003,1725898264673,-2734.48,0.00014794,2]
[337623004,1725898264683,-373.85,0.00014794,2]
[337623005,1725898264693,-837.29,0.00014794,2]
[337623006,1725898264702,-1115.19,0.00014794,2]
[337623007,1725898264712,-2734.48,0.00014794,2]
[337623008,1725898264722,-837.29,0.00014794,2]
[337623009,1725898264731,-1115.19,0.00014794,2]
[337623010,1725898264742,-2507.19642111,0.00014794,2]
[337623011,1725898265282,-227.28357889,0.00014794,2]
[337623012,1725898265291,-500.0,0.00014794,2]
[337623013,1725898265301,-352.00827228,0.00014794,2]
[337623014,1725898265315,-485.28172772,0.00014794,2]
[337623015,1725898265324,-641.41827228,0.00014794,2]
[337623016,1725898265340,-473.77172772,0.00014794,2]
[337623017,1725898265349,-370.07127228,0.00014794,2]
[337623018,1725898265361,-129.92872772,0.00014794,2]
[337623019,1725898265370,-837.29,0.00014794,2]
[337623020,1725898265379,-2734.48,0.00014794,2]
[337623021,1725898265388,-303.05231042,0.00014794,2]
[337623022,1725898265414,-196.94768958,0.00014794,2]
[337623023,1725898265424,-504.41070297,0.00014794,2]
[337623024,1725898265433,-2734.48,0.00014794,2]
[337623025,1725898265442,-837.29,0.00014794,2]
[337623026,1725898265452,-500.0,0.00014794,2]
[337623027,1725898265462,-976.8879643,0.00014794,2]
[337623028,1725898265478,-138.3020357,0.00014794,2]
[337623029,1725898265488,-130.9379643,0.00014794,2]
[337623030,1725898296192,150.0,0.00010958,2]
[337623031,1725898296212,200.0,0.00010958,2]
[337623032,1725898296235,150.0,0.00010958,2]
[337623033,1725898363397,350.0,0.00010958,2]
[337623034,1725898504562,150.0,0.00012,2]
[337623035,1725898840121,160.76,0.00010959,2]
[337623036,1725898850430,750.0,0.00011,2]
[337623037,1725898930121,564.22,0.00010822,2]
[337623044,1725899379195,250.0,0.00011987,2]
[337623045,1725899400474,-156.79,0.00012034,2]
[337623046,1725899400502,-500.0,0.00012096,2]
[337623047,1725899400530,-190.95953612,0.00012125,2]
[337623062,1725899433196,-1661.46046388,0.00012125,2]
[337623063,1725899433206,-410.39,0.0001215,2]
[337623064,1725899433215,-250.0,0.00012152,2]
[337623065,1725899433225,-450.2,0.00012313,2]
[337623066,1725899433234,-300.0,0.00012592,2]
[337623067,1725899433243,-167.36,0.00012593,2]
[337623068,1725899433252,-499.99,0.00012593,2]
[337623069,1725899433261,-999.99,0.00012593,2]
[337623070,1725899433271,-803.13,0.00012611,2]
[337623071,1725899433280,-250.0,0.0001265,2]
[337623072,1725899433289,-1062.03,0.00012652,2]
[337623073,1725899433299,-216.41,0.0001274,2]
[337623074,1725899433308,-1020.92781733,0.00012744,2]
[337623075,1725899433317,-153.91,0.00012755,2]
[337623076,1725899433326,-5489.67,0.00012755,2]
[337623077,1725899433335,-3283.87,0.00012761,2]
[337623078,1725899433345,-178.79,0.00012819,2]
[337623079,1725899433354,-150.0,0.00012843,2]
[337623080,1725899433363,-1113.38,0.00012844,2]
[337623081,1725899433372,-23900.0,0.00012844,2]
[337623082,1725899433382,-500.0,0.00012877,2]
[337623083,1725899433393,-7331.05092088,0.0001288,2]
[337623084,1725899433403,-1020.92781734,0.000129,2]
[337623085,1725899433412,-500.0,0.00012973,2]
[337623086,1725899433421,-500.0,0.00012973,2]
[337623087,1725899433430,-151.01,0.0001299,2]
[337623088,1725899433440,-151.01,0.0001299,2]
[337623089,1725899433450,-500.0,0.00012999,2]
[337623090,1725899433459,-500.0,0.00012999,2]
[337623091,1725899433468,-500.0,0.00012999,2]
[337623092,1725899433478,-447.56938776,0.00012999,2]
[337623093,1725899433487,-204.96,0.00013,2]
[337623094,1725899433497,-800.0,0.00013,2]
[337623095,1725899433507,-1619105.82468351,0.00013,2]
[337623096,1725899433516,-964.47468221,0.00013,7]
[337623097,1725899433527,-792.24,0.00013011,2]
[337623098,1725899433536,-400.0,0.00013125,2]
[337623099,1725899433545,-150.0,0.0001329,2]
[337623100,1725899433555,-157.3,0.00013403,2]
[337623101,1725899433564,-795.0,0.00013689,2]
[337623102,1725899433574,-488.6060689,0.00013698,2]
[337623103,1725899433584,-176.8,0.00013699,2]
[337623104,1725899433594,-494.11,0.00013699,2]
[337623105,1725899433603,-162.01,0.00013699,2]
[337623106,1725899433613,-44803.16304892,0.000138,2]
[337623107,1725899433648,-1293.8,0.000138,2]
[337623110,1725899435085,536.0,0.0001186,2]
[337623119,1725899438569,-106026.84638493,0.000138,2]
[337623123,1725899438601,-22036.24501597,0.000138,2]
[337623128,1725899438633,-72514.56512618,0.000138,2]
[337623129,1725899438644,-300.0,0.00013815,2]
[337623131,1725899438653,-255.0,0.00013948,2]
[337623134,1725899438663,-291.21,0.0001397,2]
[337623135,1725899438672,-854.0,0.00014078,2]
[337623137,1725899438681,-357.37,0.00014078,2]
[337623139,1725899438690,-241.38,0.00014078,2]
[337623141,1725899438700,-536.0,0.00014124,2]
[337623143,1725899438710,-1144.0,0.00014166,2]
[337623145,1725899438719,-4255.998,0.00014166,2]
[337623147,1725899438729,-150.0,0.00014166,2]
[337623149,1725899438738,-1749.0,0.00014166,2]
[337623151,1725899438747,-557.0,0.00014166,2]
[337623153,1725899438756,-1078.0,0.00014166,2]
[337623155,1725899438765,-282.3496,0.0001429,2]
[337623157,1725899438774,-2535.5939,0.0001429,2]
[337623159,1725899438784,-601.6341,0.0001429,2]
[337623161,1725899438794,-388.79,0.0001429,2]
[337623163,1725899438803,-14133.0822,0.0001429,2]
[337623165,1725899438812,-2500.0,0.0001429,2]
[337623167,1725899438822,-500.0,0.00014342,2]
[337623169,1725899438832,-795.0,0.00014373,2]
[337623171,1725899438841,-2155.8422,0.0001439,2]
[337623172,1725899438852,-727.9384,0.0001439,2]
[337623174,1725899438861,-1579.1914,0.0001439,2]
[337623176,1725899438871,-787.2388,0.0001439,2]
[337623178,1725899438881,-142770.73279323,0.0001439,2]
[337623181,1725899438895,-49489.49140677,0.0001439,2]
[337623183,1725899438905,-186.571785,0.00014521,2]
[337623185,1725899438915,-978.072,0.00014593,2]
[337623187,1725899438925,-287.066,0.00014593,2]
[337623189,1725899438936,-4551.782,0.00014694,2]
[337623191,1725899438948,-5367.3529,0.00014694,2]
[337623193,1725899438959,-2062.6928,0.00014694,2]
[337623195,1725899438968,-252.1806,0.00014694,2]
[337623197,1725899438979,-1712.19343174,0.00014694,2]
[337623199,1725899438988,-333.75235192,0.000147,2]
[337623201,1725899438998,-150.0,0.000147,2]
[337623203,1725899439008,-400.0,0.00014766,2]
[337623205,1725899439021,-500.0,0.00014773,2]
[337623207,1725899439030,-500.0,0.00014773,2]
[337623209,1725899439040,-500.0,0.00014773,2]
[337623211,1725899439050,-151.01,0.00014784,2]
[337623213,1725899439059,-1644.992687,0.00014784,2]
[337623215,1725899439068,-1644.992687,0.00014784,2]
[337623217,1725899439077,-712.703522,0.00014784,2]
[337623219,1725899439086,-712.703522,0.00014784,2]
[337623221,1725899439096,-1615.168596,0.00014784,2]
[337623222,1725899439106,-151.0,0.00014784,2]
[337623224,1725899439116,-1615.168596,0.00014784,2]
[337623226,1725899439125,-151.0,0.00014784,2]
[337623228,1725899439135,-1799.044197,0.00014784,2]
[337623230,1725899439146,-1799.044197,0.00014784,2]
[337623232,1725899439155,-419.123318,0.00014784,2]
[337623234,1725899439165,-419.123318,0.00014784,2]
[337623236,1725899439174,-2429.538658,0.00014784,2]
[337623238,1725899439184,-2429.538658,0.00014784,2]
[337623240,1725899439193,-151.0,0.00014784,2]
[337623242,1725899439203,-151.0,0.00014784,2]
[337623244,1725899439213,-151.0,0.00014784,2]
[337623246,1725899439222,-151.0,0.00014784,2]
[337623248,1725899439232,-151.0,0.00014784,2]
[337623250,1725899439241,-151.0,0.00014784,2]
[337623252,1725899439250,-1100.623729,0.00014784,2]
[337623254,1725899439260,-1100.623729,0.00014784,2]
[337623256,1725899439269,-14588.40926522,0.00014793,2]
[337623258,1725899439279,-737.0,0.00014794,2]
[337623260,1725899439288,-130264.61779366,0.00014794,2]
[337623262,1725899439298,-500.0,0.00014794,2]
[337623264,1725899439307,-500.55547139,0.00014794,2]
[337623266,1725899439316,-1484.19,0.00014794,2]
[337623268,1725899439327,-1484.19,0.00014794,2]
[337623270,1725899439337,-1484.19,0.00014794,2]
[337623272,1725899439347,-1484.19,0.00014794,2]
[337623274,1725899439357,-1484.19,0.00014794,2]
[337623276,1725899439366,-1484.19,0.00014794,2]
[337623278,1725899439375,-1484.19,0.00014794,2]
[337623280,1725899439385,-1484.19,0.00014794,2]
[337623282,1725899439400,-1484.19,0.00014794,2]
[337623284,1725899439410,-1484.19,0.00014794,2]
[337623286,1725899439420,-1484.19,0.00014794,2]
[337623288,1725899439430,-1484.19,0.00014794,2]
[337623290,1725899439440,-1484.19,0.00014794,2]
[337623292,1725899439451,-1484.19,0.00014794,2]
[337623294,1725899439462,-1484.19,0.00014794,2]
[337623296,1725899439472,-1484.19,0.00014794,2]
[337623298,1725899439482,-1484.19,0.00014794,2]
[337623300,1725899439492,-1484.19,0.00014794,2]
[337623302,1725899439502,-1484.19,0.00014794,2]
[337623303,1725899439512,-2000.0,0.00014794,2]
[337623304,1725899439523,-1484.19,0.00014794,2]
[337623305,1725899439533,-1484.19,0.00014794,2]
[337623306,1725899439543,-1484.19,0.00014794,2]
[337623307,1725899439553,-1484.19,0.00014794,2]
[337623308,1725899439562,-1484.37325447,0.00014794,2]
[337623309,1725899439572,-200.0,0.00014794,2]
[337623310,1725899439582,-1193.33,0.00014794,2]
[337623311,1725899439592,-1193.33,0.00014794,2]
[337623312,1725899439602,-1193.33,0.00014794,2]
[337623313,1725899439612,-1193.33,0.00014794,2]
[337623314,1725899439622,-2211.75,0.00014794,2]
[337623315,1725899439631,-1193.33,0.00014794,2]
[337623316,1725899439644,-2211.75,0.00014794,2]
[337623317,1725899439654,-1193.33,0.00014794,2]
[337623318,1725899439664,-2211.75,0.00014794,2]
[337623319,1725899439674,-1193.33,0.00014794,2]
[337623320,1725899439683,-2211.75,0.00014794,2]
[337623321,1725899439693,-1193.33,0.00014794,2]
[337623322,1725899439703,-2211.75,0.00014794,2]
[337623323,1725899439713,-1193.33,0.00014794,2]
[337623324,1725899439723,-2211.75,0.00014794,2]
[337623325,1725899439733,-1193.33,0.00014794,2]
[337623326,1725899439743,-2211.75,0.00014794,2]
[337623327,1725899439752,-1193.33,0.00014794,2]
[337623328,1725899439761,-2211.75,0.00014794,2]
[337623329,1725899439771,-1193.33,0.00014794,2]
[337623330,1725899439779,-2211.75,0.00014794,2]
[337623331,1725899439788,-1193.33,0.00014794,2]
[337623332,1725899439797,-2211.75,0.00014794,2]
[337623333,1725899439807,-1193.33,0.00014794,2]
[337623334,1725899439817,-2211.75,0.00014794,2]
[337623335,1725899439827,-1193.33,0.00014794,2]
[337623336,1725899439837,-2211.75,0.00014794,2]
[337623337,1725899439847,-1193.33,0.00014794,2]
[337623338,1725899439856,-2211.75,0.00014794,2]
[337623339,1725899439866,-2248.34,0.00014794,2]
[337623340,1725899439875,-1193.33,0.00014794,2]
[337623341,1725899439885,-2248.34,0.00014794,2]
[337623342,1725899439897,-2211.75,0.00014794,2]
[337623343,1725899439906,-1193.33,0.00014794,2]
[337623344,1725899439915,-2211.75,0.00014794,2]
[337623345,1725899439925,-2248.34,0.00014794,2]
[337623346,1725899439937,-2211.75,0.00014794,2]
[337623347,1725899439947,-2248.34,0.00014794,2]
[337623348,1725899439957,-2211.75,0.00014794,2]
[337623349,1725899439966,-2211.75,0.00014794,2]
[337623350,1725899439976,-2248.34,0.00014794,2]
[337623351,1725899439987,-2211.75,0.00014794,2]
[337623352,1725899439997,-2248.34,0.00014794,2]
[337623353,1725899440007,-2211.75,0.00014794,2]
[337623354,1725899440017,-2248.34,0.00014794,2]
[337623355,1725899440029,-2211.75,0.00014794,2]
[337623356,1725899440038,-2248.34,0.00014794,2]
[337623357,1725899440048,-2211.75,0.00014794,2]
[337623360,1725899440058,-2248.34,0.00014794,2]
[337623361,1725899440159,-2211.75,0.00014794,2]
[337623362,1725899440168,-2248.34,0.00014794,2]
[337623363,1725899440178,-2211.94621038,0.00014794,2]
[337623364,1725899440188,-2248.34,0.00014794,2]
[337623365,1725899440197,-2248.34,0.00014794,2]
[337623366,1725899440206,-1193.33,0.00014794,2]
[337623367,1725899440216,-2248.34,0.00014794,2]
[337623368,1725899440225,-1193.33,0.00014794,2]
[337623369,1725899440235,-2248.34,0.00014794,2]
[337623370,1725899440245,-1193.33,0.00014794,2]
[337623371,1725899440255,-2248.34,0.00014794,2]
[337623372,1725899440264,-1193.33,0.00014794,2]
[337623373,1725899440274,-2248.34,0.00014794,2]
[337623374,1725899440283,-1193.33,0.00014794,2]
[337623375,1725899440291,-1193.35474771,0.00014794,2]
[337623376,1725899440301,-2248.34,0.00014794,2]
[337623377,1725899440310,-2248.34,0.00014794,2]
[337623378,1725899440319,-500.0,0.00014794,2]
[337623379,1725899440329,-2248.34,0.00014794,2]
[337623380,1725899440338,-500.0,0.00014794,2]
[337623381,1725899440347,-2248.34,0.00014794,2]
[337623382,1725899440357,-500.0,0.00014794,2]
[337623383,1725899440367,-2248.34,0.00014794,2]
[337623384,1725899440376,-500.0,0.00014794,2]
[337623385,1725899440386,-2248.34,0.00014794,2]
[337623386,1725899440400,-407.55358573,0.00014794,2]
[337623387,1725899440409,-2248.34,0.00014794,2]
[337623388,1725899440418,-2248.52038831,0.00014794,2]
[337623389,1725899440427,-1134.73,0.00014794,2]
[337623390,1725899440436,-1134.73,0.00014794,2]
[337623391,1725899440446,-500.0,0.00014794,2]
[337623392,1725899440456,-1134.73,0.00014794,2]
[337623393,1725899440466,-500.0,0.00014794,2]
[337623394,1725899440475,-504.26380991,0.00014794,2]
[337623395,1725899440485,-1134.73,0.00014794,2]
[337623396,1725899440494,-500.0,0.00014794,2]
[337623397,1725899440503,-1134.73,0.00014794,2]
[337623398,1725899440512,-500.0,0.00014794,2]
[337623399,1725899440521,-1134.73,0.00014794,2]
[337623400,1725899440530,-500.0,0.00014794,2]
[337623401,1725899440540,-1134.73,0.00014794,2]
[337623402,1725899440549,-1134.73,0.00014794,2]
[337623403,1725899440559,-500.0,0.00014794,2]
[337623404,1725899440569,-1134.73,0.00014794,2]
[337623405,1725899440579,-500.0,0.00014794,2]
[337623406,1725899440590,-1134.73,0.00014794,2]
[337623407,1725899440599,-500.0,0.00014794,2]
[337623408,1725899440609,-1134.73,0.00014794,2]
[337623409,1725899440618,-585.00552819,0.00014794,2]
[337623410,1725899440627,-500.0,0.00014794,2]
[337623411,1725899440638,-1134.73,0.00014794,2]
[337623412,1725899440652,-510.91171965,0.00014794,2]
[337623414,1725899440669,-1134.73,0.00014794,2]
[337623416,1725899440679,-1134.73,0.00014794,2]
[337623418,1725899440688,-1134.73,0.00014794,2]
[337623420,1725899440698,-1134.73,0.00014794,2]
[337623422,1725899440708,-1134.73,0.00014794,2]
[337623424,1725899440718,-1134.73,0.00014794,2]
[337623426,1725899440728,-1134.73,0.00014794,2]
[337623428,1725899440738,-561.37027387,0.00014794,2]
[337623430,1725899440748,-1134.73,0.00014794,2]
[337623431,1725899440758,-1134.73,0.00014794,2]
[337623432,1725899440768,-1134.73,0.00014794,2]
[337623433,1725899440777,-1134.73,0.00014794,2]
[337623434,1725899440787,-1134.76342485,0.00014794,2]
[337623435,1725899440796,-545.20304825,0.00014794,2]
[337623436,1725899440805,-1792.37,0.00014794,2]
[337623437,1725899440814,-500.0,0.00014794,2]
[337623438,1725899440824,-1792.37,0.00014794,2]
[337623439,1725899440833,-500.0,0.00014794,2]
[337623440,1725899440843,-500.0,0.00014794,2]
[337623441,1725899440853,-288.39251534,0.00014794,2]
[337623442,1725899440862,-1792.37,0.00014794,2]
[337623443,1725899440872,-500.0,0.00014794,2]
[337623444,1725899440882,-1792.37,0.00014794,2]
[337623445,1725899440892,-500.0,0.00014794,2]
[337623446,1725899440901,-1792.37,0.00014794,2]
[337623447,1725899440911,-500.0,0.00014794,2]
[337623448,1725899440919,-1792.37,0.00014794,2]
[337623449,1725899440929,-500.0,0.00014794,2]
[337623450,1725899440938,-1792.37,0.00014794,2]
[337623451,1725899440951,-500.0,0.00014794,2]
[337623452,1725899440961,-1792.37,0.00014794,2]
[337623453,1725899440970,-500.0,0.00014794,2]
[337623454,1725899440980,-1792.37,0.00014794,2]
[337623455,1725899440990,-500.0,0.00014794,2]
[337623456,1725899441001,-1792.37,0.00014794,2]
[337623457,1725899441011,-500.0,0.00014794,2]
[337623458,1725899441021,-1792.37,0.00014794,2]
[337623459,1725899441031,-500.0,0.00014794,2]
[337623460,1725899441041,-500.0,0.00014794,2]
[337623461,1725899441051,-1792.37,0.00014794,2]
[337623462,1725899441060,-500.0,0.00014794,2]
[337623463,1725899441069,-500.0,0.00014794,2]
[337623464,1725899441078,-1792.37,0.00014794,2]
[337623465,1725899441087,-500.0,0.00014794,2]
[337623466,1725899441097,-500.0,0.00014794,2]
[337623467,1725899441106,-1119.32491264,0.00014794,2]
[337623468,1725899441545,-498.39338516,0.00014794,2]
[337623469,1725899441565,-174.6517022,0.00014794,2]
[337623470,1725899441574,-500.0,0.00014794,2]
[337623471,1725899441583,-500.0,0.00014794,2]
[337623472,1725899441593,-1792.37,0.00014794,2]
[337623473,1725899441602,-548.10964036,0.00014794,2]
[337623474,1725899441611,-500.0,0.00014794,2]
[337623475,1725899441621,-1792.37,0.00014794,2]
[337623476,1725899441630,-500.0,0.00014794,2]
[337623477,1725899441639,-1792.37,0.00014794,2]
[337623478,1725899441648,-323.55761753,0.00014794,2]
[337623479,1725899441680,-176.44238247,0.00014794,2]
[337623480,1725899441692,-161.63161818,0.00014794,2]
[337623481,1725899441705,-455.14838182,0.00014794,2]
[337623482,1725899441714,-1792.37,0.00014794,2]
[337623483,1725899441723,-651.1266736,0.00014794,2]
[337623484,1725899441736,-613.60404584,0.00014794,2]
[337623485,1725899441747,-527.63928056,0.00014794,2]
[337623486,1725899441757,-1792.37,0.00014794,2]
[337623487,1725899441766,-259.12071944,0.00014794,2]
[337623488,1725899441940,441.02,0.00010959,2]
[337623515,1725899443699,-1533.24928056,0.00014794,2]
[337623516,1725899443708,-1792.37,0.00014794,2]
[337623517,1725899443717,-1792.37,0.00014794,2]
[337623518,1725899443727,-2236.87,0.00014794,2]
[337623520,1725899443736,-1792.41127889,0.00014794,2]
[337623521,1725899443745,-2236.87,0.00014794,2]
[337623523,1725899443754,-500.0,0.00014794,2]
[337623524,1725899443763,-2236.87,0.00014794,2]
[337623525,1725899443773,-2236.87,0.00014794,2]
[337623526,1725899443782,-150.788973,0.00014794,2]
[337623527,1725899443791,-2236.87,0.00014794,2]
[337623528,1725899443800,-2236.87,0.00014794,2]
[337623529,1725899443810,-150.788973,0.00014794,2]
[337623530,1725899443820,-154.362397,0.00014794,2]
[337623531,1725899443829,-500.0,0.00014794,2]
[337623532,1725899443838,-2236.87,0.00014794,2]
[337623533,1725899443847,-150.788973,0.00014794,2]
[337623534,1725899443857,-500.0,0.00014794,2]
[337623535,1725899443866,-2236.87,0.00014794,2]
[337623536,1725899443877,-150.788973,0.00014794,2]
[337623537,1725899443887,-2297.59,0.00014794,2]
[337623538,1725899443900,-500.0,0.00014794,2]
[337623539,1725899443909,-2236.87,0.00014794,2]
[337623540,1725899443918,-150.788973,0.00014794,2]
[337623541,1725899443927,-2297.59,0.00014794,2]
[337623542,1725899443940,-500.0,0.00014794,2]
[337623543,1725899443949,-150.788973,0.00014794,2]
[337623544,1725899443958,-2297.59,0.00014794,2]
[337623545,1725899443967,-500.0,0.00014794,2]
[337623546,1725899443976,-2236.87,0.00014794,2]
[337623547,1725899443986,-2297.59,0.00014794,2]
[337623548,1725899443995,-500.0,0.00014794,2]
[337623549,1725899444004,-2236.87,0.00014794,2]
[337623550,1725899444013,-2297.59,0.00014794,2]
[337623551,1725899444024,-500.0,0.00014794,2]
[337623552,1725899444033,-2236.87,0.00014794,2]
[337623553,1725899444043,-2297.59,0.00014794,2]
[337623554,1725899444052,-2236.87,0.00014794,2]
[337623555,1725899444062,-1074.9299538,0.00014794,2]
[337623556,1725899444111,-1222.6600462,0.00014794,2]
[337623557,1725899444120,-639.21050727,0.00014794,2]
[337623558,1725899444129,-2236.87,0.00014794,2]
[337623559,1725899444138,-2297.59,0.00014794,2]
[337623560,1725899444148,-2236.87,0.00014794,2]
[337623561,1725899444157,-1435.98,0.00014794,2]
[337623562,1725899444166,-2297.59,0.00014794,2]
[337623563,1725899444175,-152.714689,0.00014794,2]
[337623564,1725899444184,-2236.87,0.00014794,2]
[337623565,1725899444193,-150.788973,0.00014794,2]
[337623566,1725899444202,-1435.98,0.00014794,2]
[337623567,1725899444211,-2297.59,0.00014794,2]
[337623568,1725899444220,-166.161849,0.00014794,2]
[337623569,1725899444229,-2236.87,0.00014794,2]
[337623570,1725899444238,-150.788973,0.00014794,2]
[337623571,1725899444248,-1435.98,0.00014794,2]
[337623572,1725899444257,-2297.59,0.00014794,2]
[337623573,1725899444267,-2236.87,0.00014794,2]
[337623574,1725899444276,-166.161849,0.00014794,2]
[337623575,1725899444285,-1147.76234055,0.00014794,2]
[337623576,1725899444314,-288.21765945,0.00014794,2]
[337623577,1725899444324,-150.788973,0.00014794,2]
[337623578,1725899444333,-2297.59,0.00014794,2]
[337623579,1725899444341,-2236.87,0.00014794,2]
[337623580,1725899444350,-1435.98,0.00014794,2]
[337623581,1725899444359,-166.161849,0.00014794,2]
[337623582,1725899444368,-2297.59,0.00014794,2]
[337623583,1725899444377,-2236.87,0.00014794,2]
[337623584,1725899444387,-1435.98,0.00014794,2]